Cogmind - Beta 14 @@@ ROGUE MODE // 2024.08.15 @ 08:14:35 Player: Dosh Result: Destroyed by L-31 Rogue with Katana Performance ------------- Evolutions (2) 1000 Regions Visited (9) 1800 Robots Destroyed (183) 915 Value Destroyed (5690) 5690 Prototype IDs (10) 200 Alien Tech Used (0) 0 Bonus (1147) 1147 TOTAL SCORE: 10752 Bonus ------- High Alert Combat Kills 953 Follower Combat Kills 42 Entered Garrisons 200 Friendly Fire -48 Cogmind --------- Core Integrity 0/550 Matter 37/300 Energy 49/280 System Corruption 8% Temperature Cool (0) Movement Treading (320) Ox2 Location -8/Materials Parts ------- > --- POWER (1) -------- Heavy Ion Engine > --- PROPULSION (3) --- Light Treads Light Treads > --- UTILITY (5) ------ Cooling System High-capacity Storage Unit Advanced Targeting Computer Medium Reactive Plating Force Field > --- WEAPON (2) ------- Enhanced Autogun Enhanced Autogun > --- INVENTORY (20) --- Light Treads Advanced Heat Sink Compact Battery (200) Machine Analyzer Transport Network Coupler Medium Reactive Plating Medium Reactive Plating Improved Assault Rifle Enhanced Autogun Enhanced Autogun Enhanced Autogun Enhanced Autogun Enhanced Autogun Enhanced Autogun Missile Launcher Power Sword Peak State ------------ > --- POWER ------------ Deuterium Engine > --- PROPULSION ------- Improved Treads Armored Treads Armored Treads > --- UTILITY ---------- Advanced Heat Sink Cooling System High-capacity Storage Unit Force Field Hacking Suite > --- WEAPON ----------- Enhanced Autogun Enhanced Autogun > --- INVENTORY -------- Heavy Ion Engine Light Deuterium Engine Light Treads Light Treads Light Treads Armored Treads Compact Battery Machine Analyzer Transport Network Coupler Medium Reactive Plating Medium Reactive Plating Medium Reactive Plating Medium Reactive Plating Force Field Improved Assault Rifle Enhanced Autogun Enhanced Autogun Enhanced Autogun Rocket Launcher Scythe [Rating: 41] Favorites ----------- Power Heavy Ion Engine Engine Heavy Ion Engine Propulsion Light Treads Treads Light Treads Utility High-capacity Storage Unit Device Cooling System Storage High-capacity Storage Unit Processor Advanced Visual Processing Unit Hackware Hacking Suite Protection Light Armor Plating Weapon Enhanced Autogun Energy Gun Improved EM Shotgun Ballistic Gun Enhanced Autogun Launcher Rocket Launcher Slashing Weapon Scythe Build | -11 -10 -10 -9 -9 -9 -8 -8 -8 -8 ------- Run | Yrd Mat Min Mat Min Exi Min Mat Gar Mat Slots Evolved 4 | . . . 2 . . . 2 . . Power . | . . . . . . . . . . Propulsion 1 | . . . 1 . . . . . . Utility 3 | . . . 1 . . . 2 . . Weapon . | . . . . . . . . . . Parts Attached 111 | 6 7 1 24 2 1 4 31 16 19 Power 10 | 1 2 . 2 . . . 3 1 1 Engine 10 | 1 2 . 2 . . . 3 1 1 Core . | . . . . . . . . . . Reactor . | . . . . . . . . . . Propulsion 29 | 2 . . 10 2 . . 11 . 4 Treads 29 | 2 . . 10 2 . . 11 . 4 Leg . | . . . . . . . . . . Wheel . | . . . . . . . . . . Hover . | . . . . . . . . . . Flight . | . . . . . . . . . . Utility 36 | 1 3 1 8 . . 3 11 5 4 Device 12 | . . . 2 . . 2 4 3 1 Storage 4 | 1 2 . 1 . . . . . . Processor 2 | . . . . . . . 1 . 1 Hackware 2 | . . . . . . . 1 1 . Protection 16 | . 1 1 5 . . 1 5 1 2 Artifact . | . . . . . . . . . . Weapon 36 | 2 2 . 4 . 1 1 6 10 10 Energy Gun 3 | 1 . . 1 . 1 . . . . Energy Cannon . | . . . . . . . . . . Ballistic Gun 24 | 1 2 . 3 . . 1 5 5 7 Ballistic Cannon . | . . . . . . . . . . Launcher 6 | . . . . . . . 1 2 3 Special Weapon . | . . . . . . . . . . Impact Weapon . | . . . . . . . . . . Slashing Weapon 3 | . . . . . . . . 3 . Piercing Weapon . | . . . . . . . . . . Special Melee Weapon . | . . . . . . . . . . Unidentified Prototypes 2 | . . . 1 . . . 1 . . Corrupted Parts 1 | . . . . . . 1 . . . System Corruption 2 | . . . . . . 2 . . . Parts Lost 18 | . 1 1 1 . . 1 3 1 10 Power 3 | . 1 . 1 . . . . . 1 Propulsion 5 | . . . . . . . 1 . 4 Utility 7 | . . 1 . . . 1 1 1 3 Weapon 3 | . . . . . . . 1 . 2 Highest Loss Streak 4 | . 1 1 1 . . 1 1 1 4 To Critical Strikes . | . . . . . . . . . . Average Slot Usage (%) 98 | . 99 100 99 100 88 94 98 100 99 Engine 10 | . 13 14 10 11 11 11 9 9 9 Treads 29 | . 28 28 33 33 33 33 26 27 27 Device 12 | . . . 10 11 11 10 17 24 18 Storage 10 | . 14 14 11 11 11 11 9 9 9 Processor 1 | . . . . . . . 6 . . Hackware 2 | . . . . . . . . 8 7 Protection 10 | . 13 14 11 11 11 11 10 3 9 Energy Gun 3 | . . . 9 11 11 11 . . . Ballistic Gun 16 | . 27 28 12 11 . 6 17 15 17 Peak Build Rating 41 | 6 8 8 19 19 17 23 32 41 41 Average Rating 22 | 4 6 7 16 19 17 18 29 35 38 On Entrance 17 | . 6 7 8 19 19 17 23 31 41 Naked Turns . | . . . . . . . . . . Heaviest Build 103 | 13 32 32 60 60 57 61 67 74 103 Greatest Support 66 | 40 40 40 63 63 63 63 66 63 63 Greatest Overweight (x) 1 | . . . . . . . 1 1 1 Average Overweight (x) . | . . . . . . . . . 1 Largest Inventory Capacity 20 | 8 15 15 20 20 20 20 20 20 20 Average Capacity 18 | 6 11 15 19 20 20 20 20 20 20 Most Carried 20 | 1 10 9 20 20 20 18 20 20 20 Average Carried 16 | . 6 8 17 19 18 17 19 19 18 Final Capacity 20 | 8 15 15 20 20 20 20 20 20 20 Final Carried 20 | 1 9 9 19 19 18 17 20 20 16 Class Distribution -------------------- 93% | Mutant 6% | Scavenger-Mutant Dominant Class ---------------- Mutant | -10/Materials Mutant | -10/Mines Mutant | -9/Materials Mutant | -9/Mines Mutant | -9/Exiles Mutant | -8/Mines Mutant | -8/Materials Mutant | -8/Garrison Mutant | -8/Materials Resources | -11 -10 -10 -9 -9 -9 -8 -8 -8 -8 ----------- Run | Yrd Mat Min Mat Min Exi Min Mat Gar Mat Matter Collected 4854 | 196 608 99 443 25 . 155 1217 419 1692 Remotely . | . . . . . . . . . . Salvage Created 7406 | . 787 144 1126 . . 339 1595 822 2593 Parts 424 | . 57 12 70 . . 12 97 55 121 Haulers Intercepted 14 | . 2 . 4 . . . 4 . 4 Recyclers Shooed 5 | . . . 1 . . . 1 . 3 Parts Field Recycled . | . . . . . . . . . . Retrieved Matter . | . . . . . . . . . . Parts Self-Destructed . | . . . . . . . . . . Prevented . | . . . . . . . . . . Kills | -11 -10 -10 -9 -9 -9 -8 -8 -8 -8 ------- Run | Yrd Mat Min Mat Min Exi Min Mat Gar Mat Combat Hostiles Destroyed 146 | . 21 6 17 . . 6 32 19 45 Guns 131 | . 21 6 17 . . 5 32 11 39 AOE 15 | . . . . . . 1 . 8 6 Classes Destroyed 14 | . 5 1 1 . . . 1 2 4 Builder 3 | . . 1 . . . . 1 . 1 Hauler 14 | . 2 . 4 . . . 4 . 4 Recycler 4 | . . . . . . . . . 4 Mechanic 1 | . . . . . . . . . 1 Operator 5 | . 2 . 1 . . . 2 . . Watcher 11 | . 2 . 2 . . . 3 1 3 Swarmer 37 | . 9 5 1 . . . 12 4 6 Grunt 72 | . 12 1 8 . . 6 13 6 26 Brawler 2 | . . . . . . . . . 2 Duelist 2 | . . . . . . . 1 . 1 Protector 1 | . . . . . . . . . 1 Sentry 26 | . . . 8 . . . 6 4 8 Specialist 3 | . . . . . . . . 3 . Hunter 3 | . . . . . . . . 2 1 Best Kill Streak 8 | . 8 3 3 . . 3 5 5 5 Combat Bots Only 7 | . 7 3 3 . . 3 4 5 5 Max Kills in Single Turn 3 | . 1 1 1 . . 1 2 3 3 Gunslinging . | . . . . . . . . . . Exploded 3 | . . . . . . 1 . 3 3 Melee . | . . . . . . . . . . Uniques/NPCs Destroyed . | . . . . . . . . . . Combat | -11 -10 -10 -9 -9 -9 -8 -8 -8 -8 -------- Run | Yrd Mat Min Mat Min Exi Min Mat Gar Mat Hostile Shots Fired 694 | . 64 19 54 . . 38 147 75 297 Missed 197 | . 14 6 14 . . 11 42 29 81 Damage Taken 5465 | . 515 122 590 . . 486 933 542 2277 Core 695 | . 76 16 . . . 51 86 101 365 Absorbed by Shields 1535 | . . . . . . . 375 205 955 Ignored by Resistances 192 | . . . . . . . . . 192 Regen/Repaired (Parts) 68 | . . . . . . . 68 . . Core Remaining (%) 83 | 100 . 63 . . . 87 . . . Volleys Fired 544 | . 84 13 61 . . 23 124 39 200 Largest 2 | . 2 2 2 . . 2 2 2 2 Hottest 68 | . 40 40 68 . . 68 68 50 61 Shots Fired 1053 | . 168 26 110 2 . 45 245 70 387 Gun 1038 | . 168 26 110 2 . 45 243 64 380 Cannon . | . . . . . . . . . . Launcher 15 | . . . . . . . 2 6 7 Special . | . . . . . . . . . . Kinetic 964 | . 168 26 66 . . 22 238 64 380 Thermal . | . . . . . . . . . . Explosive 15 | . . . . . . . 2 6 7 Electromagnetic 74 | . . . 44 2 . 23 5 . . Robot Hit Streak 24 | . 11 6 24 . . 6 20 9 16 Robot Miss Streak 5 | . 3 5 3 2 . 3 5 1 4 Penetration Max . | . . . . . . . . . . Secondary Targets 16 | . 1 2 . . . 1 3 2 7 Max Gunslinging Chain 1 | . 1 1 . . . 1 1 1 1 Shots Hit Robots 702 | . 105 15 83 . . 34 153 54 258 Core Hits 340 | . 43 11 44 . . 19 75 34 114 Critical Kills 1 | . . . . . . . . . 1 Critical Parts Destroyed 3 | . . . . . . . 1 . 2 Critical Strikes 4 | . . . . . . . 1 . 3 Destroy 4 | . . . . . . . 1 . 3 Melee Attacks 12 | . . . . . . . . 12 . Impact . | . . . . . . . . . . Slashing 12 | . . . . . . . . 12 . Piercing . | . . . . . . . . . . Sneak Attacks 1 | . . . . . . . . 1 . Combat Hostiles . | . . . . . . . . . . Follow-up Attacks . | . . . . . . . . . . Damage Inflicted 13766 | . 1373 274 1399 16 . 740 2629 1461 5874 Guns 11270 | . 1348 274 1341 . . 578 2549 784 4396 Cannons . | . . . . . . . . . . Explosions 2294 | . . . 44 . . 140 40 616 1454 Melee 61 | . . . . . . . . 61 . Ramming 141 | . 25 . 14 16 . 22 40 . 24 Kinetic 10165 | . 1348 274 675 . . 206 2482 784 4396 Thermal 184 | . . . 44 . . 140 . . . Explosive 2110 | . . . . . . . 40 616 1454 Electromagnetic 1105 | . . . 666 . . 372 67 . . Impact . | . . . . . . . . . . Slashing 61 | . . . . . . . . 61 . Piercing . | . . . . . . . . . . Highest Corruption 8 | . . . 5 5 5 7 4 4 8 Average Corruption 4 | . . . 4 5 5 5 3 4 4 Corruption Purged . | . . . . . . . . . . Corruption Blocked . | . . . . . . . . . . Effects 171 | . . . 18 19 6 22 29 32 45 Message Errors 31 | . . . 3 3 . 6 5 7 7 Matter Fused 46 | . . . 2 4 2 4 10 13 11 Heat Flow Errors 26 | . . . 4 5 1 3 7 3 3 Energy Discharges 23 | . . . 4 2 2 3 2 3 7 Parts Rejected 1 | . . . . . . . . . 1 Data Loss (minor) 21 | . . . 5 1 1 5 3 2 4 Data Loss (major) 8 | . . . . 2 . . 1 3 2 Misfires 3 | . . . . 2 . . . . 1 Alerts 1 | . . . . . . . . . 1 Weapon Failures 11 | . . . . . . 1 1 1 8 Overload Shots . | . . . . . . . . . . Overflow Damage 39 | . . . . . . 25 . . 14 Projectiles . | . . . . . . . . . . Explosions 39 | . . . . . . 25 . . 14 Melee . | . . . . . . . . . . Knockbacks 4 | . 1 . 1 1 . . 1 . . Impact 4 | . 1 . 1 1 . . 1 . . Kinetic . | . . . . . . . . . . Secondary . | . . . . . . . . . . Self-Inflicted Damage 356 | . . . 31 . . 45 . . 280 Shots 8 | . . . 2 . . 1 . . 5 Rammed 25 | . 6 . 4 2 . 2 3 . 8 Targets Rammed 25 | . 6 . 4 2 . 2 3 . 8 Kicked . | . . . . . . . . . . Crushed . | . . . . . . . . . . Highest Temperature 372 | . 7 5 270 251 91 372 258 192 223 Average Temperature 79 | . 3 3 61 102 52 163 91 87 82 Received Heat Transfer 2261 | . 180 18 231 . . 279 319 152 1082 Siege Activations . | . . . . . . . . . . Robots Corrupted . | . . . . . . . . . . Combat Hostiles . | . . . . . . . . . . Parts Fried 6 | . . . 5 . . 1 . . . Impact Corruptions . | . . . . . . . . . . Robots Melted . | . . . . . . . . . . Combat Hostiles . | . . . . . . . . . . Parts Melted 1 | . . 1 . . . . . . . Heat Transferred 250 | . . . 100 . . 150 . . . Parts Sabotaged . | . . . . . . . . . . Parts Stolen . | . . . . . . . . . . Parts Stripped . | . . . . . . . . . . Power Chain Reactions 4 | . . . 3 . . 1 . . . Alert | -11 -10 -10 -9 -9 -9 -8 -8 -8 -8 ------- Run | Yrd Mat Min Mat Min Exi Min Mat Gar Mat Peak Influence 1182 | . 454 314 326 33 . 90 302 913 1182 Initial 444 | . . 156 122 33 . . . 195 444 Average 261 | . 204 212 165 17 . 20 113 578 669 Maximum Alert Level 4 | . 2 1 1 . . . 1 3 4 Low Security (%) 54 | 100 49 48 68 100 . 100 77 6 . Level 1 20 | . 40 51 31 . . . 22 12 . Level 2 18 | . 10 . . . . . . 49 73 Level 3 6 | . . . . . . . . 32 19 Level 4 1 | . . . . . . . . . 7 Level 5 . | . . . . . . . . . . High Security . | . . . . . . . . . . Max Security . | . . . . . . . . . . Squads Dispatched 26 | . 6 . 3 . . 1 3 . 13 Investigation 5 | . 4 . 1 . . . . . . Extermination . | . . . . . . . . . . Reinforcement 10 | . 2 . 2 . . 1 3 . 2 Assault 4 | . . . . . . . . . 4 Garrison 7 | . . . . . . . . . 7 Intercept . | . . . . . . . . . . Searches Triggered . | . . . . . . . . . . Construction Impeded 4 | . . . . . . 1 1 . 2 Haulers Reinforced . | . . . . . . . . . . Active Scanning Responses . | . . . . . . . . . . Cargo Convoy Interrupts . | . . . . . . . . . . Stealth | -11 -10 -10 -9 -9 -9 -8 -8 -8 -8 --------- Run | Yrd Mat Min Mat Min Exi Min Mat Gar Mat Distress Signals 9 | . 2 . 2 . . . 1 . 4 Communications Jammed . | . . . . . . . . . . Distress Signals . | . . . . . . . . . . Times Spotted 232 | . 38 8 27 1 . 6 57 19 76 Peak Tracking Total 7 | . 5 3 3 1 . 3 6 5 7 Tactical Retreats 14 | . 4 . 2 . . . 3 . 5 Traps | -11 -10 -10 -9 -9 -9 -8 -8 -8 -8 ------- Run | Yrd Mat Min Mat Min Exi Min Mat Gar Mat Traps Triggered 8 | . 1 . 3 . . . 3 1 . Indirectly . | . . . . . . . . . . Trap Hack Attempts . | . . . . . . . . . . Triggered . | . . . . . . . . . . Disarmed 1 | . 1 . . . . . . . . Reprogrammed . | . . . . . . . . . . Reused . | . . . . . . . . . . Traps Extracted . | . . . . . . . . . . Installed . | . . . . . . . . . . Triggered . | . . . . . . . . . . Machines | -11 -10 -10 -9 -9 -9 -8 -8 -8 -8 ---------- Run | Yrd Mat Min Mat Min Exi Min Mat Gar Mat Machines Disabled 9 | . . . 1 . . . . 3 5 Max in Single Turn 2 | . . . 1 . . . . 2 2 Machines Repaired . | . . . . . . . . . . Machines Dismantled . | . . . . . . . . . . Machines Sabotaged . | . . . . . . . . . . Overloaded Fab Kills . | . . . . . . . . . . Hacking | -11 -10 -10 -9 -9 -9 -8 -8 -8 -8 --------- Run | Yrd Mat Min Mat Min Exi Min Mat Gar Mat Machines Accessed 40 | . 10 . 11 . 1 . 9 5 4 Terminals 32 | . 7 . 10 . . . 7 5 3 Fabricators . | . . . . . . . . . . Repair Stations 4 | . 1 . 1 . . . 1 . 1 Recycling Units 2 | . 2 . . . . . . . . Scanalyzers . | . . . . . . . . . . Garrison Access 1 | . . . . . . . 1 . . Total Hacks 110 | . 23 . 34 . 1 . 29 13 10 Successful 57 | . 10 . 17 . 1 . 21 3 5 Failed 52 | . 12 . 17 . . . 8 10 5 Catastrophic 10 | . 2 . 3 . . . 1 2 2 Database Lockouts 1 | . 1 . . . . . . . . Manual 56 | . 18 . 16 . . . 15 1 6 Terminals 92 | . 18 . 31 . . . 22 13 8 Fabricators . | . . . . . . . . . . Repair Stations 13 | . 2 . 3 . . . 6 . 2 Recycling Units 3 | . 3 . . . . . . . . Scanalyzers . | . . . . . . . . . . Garrison Access 1 | . . . . . . . 1 . . Terminal Hacks 28 | . 7 . 9 . 1 . 6 3 2 Record 1 | . . . . . 1 . . . . Robot Schematic 1 | . 1 . . . . . . . . Robot Analysis 2 | . 2 . . . . . . . . Prototype ID Bank 5 | . 1 . 3 . . . 1 . . Level Access Points 1 | . . . 1 . . . . . . Branch Access Points 1 | . . . . . . . 1 . . Emergency Access Points 1 | . . . . . . . . 1 . Terminal Index 1 | . 1 . . . . . . . . Alert Level 2 | . . . 1 . . . . . 1 Unreport Threat 4 | . . . 1 . . . 2 . 1 Locate Traps 3 | . 1 . 1 . . . 1 . . Disarm Traps 1 | . 1 . . . . . . . . Hauler Manifests 2 | . . . 1 . . . 1 . . Zone Layout 1 | . . . 1 . . . . . . Patrol Navigation 1 | . . . . . . . . 1 . Security Stations 1 | . . . . . . . . 1 . Fabricator Hacks . | . . . . . . . . . . Repair Station Hacks 9 | . 1 . 1 . . . 6 . 1 Scan Component 6 | . 1 . 1 . . . 3 . 1 Repair 3 | . . . . . . . 3 . . Recycling Unit Hacks . | . . . . . . . . . . Scanalyzer . | . . . . . . . . . . Garrison Access Hacks 1 | . . . . . . . 1 . . Unlock Access 1 | . . . . . . . 1 . . Unauthorized Hacks 19 | . 2 . 7 . . . 8 . 2 Terminals 17 | . . . 7 . . . 8 . 2 Botnet 4 | . . . 2 . . . 2 . . Operators 2 | . . . . . . . 1 . 1 Skim 11 | . . . 5 . . . 5 . 1 Fabricators . | . . . . . . . . . . Repair Stations . | . . . . . . . . . . Recycling Units 2 | . 2 . . . . . . . . Tunnel 2 | . 2 . . . . . . . . Scanalyzers . | . . . . . . . . . . Garrison Access . | . . . . . . . . . . Data Cores Recovered . | . . . . . . . . . . Used . | . . . . . . . . . . Hacking Detections 34 | . 7 . 10 . . . 8 5 4 Full Trace Events 3 | . 1 . 1 . . . . 1 . Feedback Events . | . . . . . . . . . . Feedback Blocked . | . . . . . . . . . . Robot Schematics Acquired 1 | . 1 . . . . . . . . Robots Built . | . . . . . . . . . . Authchips . | . . . . . . . . . . Time . | . . . . . . . . . . Total Robot Build Rating . | . . . . . . . . . . Part Schematics Acquired . | . . . . . . . . . . Parts Built . | . . . . . . . . . . Authchips . | . . . . . . . . . . Time . | . . . . . . . . . . Total Part Build Rating . | . . . . . . . . . . Parts Repaired 3 | . . . . . . . 3 . . Time 114 | . . . . . . . 114 . . Parts Recycled . | . . . . . . . . . . Recycled Matter . | . . . . . . . . . . Retrieved Matter . | . . . . . . . . . . Retrieved Components . | . . . . . . . . . . Parts Scanalyzed . | . . . . . . . . . . Part Schematics Acquired . | . . . . . . . . . . Parts Damaged . | . . . . . . . . . . Bothacking | -11 -10 -10 -9 -9 -9 -8 -8 -8 -8 ------------ Run | Yrd Mat Min Mat Min Exi Min Mat Gar Mat Used RIF Installer . | . . . . . . . . . . Robots Hacked . | . . . . . . . . . . Non-combat . | . . . . . . . . . . Combat . | . . . . . . . . . . Robot Hacks Applied . | . . . . . . . . . . Relay Couplers Released . | . . . . . . . . . . Fabnet Peak Effective % . | . . . . . . . . . . Robots Rewired . | . . . . . . . . . . Allies Hacked . | . . . . . . . . . . Hacks Repelled . | . . . . . . . . . . Allies | -11 -10 -10 -9 -9 -9 -8 -8 -8 -8 -------- Run | Yrd Mat Min Mat Min Exi Min Mat Gar Mat Total Allies 4 | . . 3 . 1 . . . . . Largest Group 3 | . . 3 1 1 . . . . . Highest-Rated Group 40 | . . 40 16 31 . . . . . Highest-Rated Ally 31 | . . 16 16 31 . . . . . Total Orders . | . . . . . . . . . . Ally Attacks 15 | . . 14 1 . . . . . . Total Damage 111 | . . 95 16 . . . . . . Kills 2 | . . 2 . . . . . . . Allies Corrupted . | . . . . . . . . . . Allies Melted . | . . . . . . . . . . Intel | -11 -10 -10 -9 -9 -9 -8 -8 -8 -8 ------- Run | Yrd Mat Min Mat Min Exi Min Mat Gar Mat Robot Analysis Total 2 | . 2 . . . . . . . . Derelict Logs Recovered 2 | . . . . 2 . . . . . Drone Launches . | . . . . . . . . . . Drone Recoveries . | . . . . . . . . . . Exploration | -11 -10 -10 -9 -9 -9 -8 -8 -8 -8 ------------- Run | Yrd Mat Min Mat Min Exi Min Mat Gar Mat Turns Passed 11778 | 97 1876 375 2118 768 201 835 2468 1390 1650 Spaces Moved 5415 | 62 858 208 1134 475 125 468 974 704 407 Core 10 | 10 . . . . . . . . . Treads 5405 | 52 858 208 1134 475 125 468 974 704 407 Legs . | . . . . . . . . . . Wheels . | . . . . . . . . . . Hover . | . . . . . . . . . . Flight . | . . . . . . . . . . Fastest Speed 50 | 50 160 160 160 160 160 160 160 166 243 Average Speed 172 | 142 160 160 160 160 160 160 185 170 245 Slowest Speed 250 | 160 160 160 160 160 160 160 250 246 250 Overloaded Moves . | . . . . . . . . . . Propulsion Burnouts . | . . . . . . . . . . Robots Hopped . | . . . . . . . . . . Cave-ins Triggered . | . . . . . . . . . . Exploration Rate (%) 71 | 5 98 61 98 99 49 96 82 80 44 Regions Visited 9 Branch Regions 4 Pre-discovered Areas 5 | . 2 . . . 1 . 2 . . Known Exits Taken 2 | . . . . . . 1 1 . . Unknown Exits Taken 6 | 1 1 1 1 1 1 . . . . Scrap Searched 3 | . . 1 . 1 . 1 . . . Spaces Dug 23 | . . . . . . . 23 . . Terrain Destroyed 158 | . . . 13 . . 12 23 26 84 Melee . | . . . . . . . . . . Projectile . | . . . . . . . . . . AOE 158 | . . . 13 . . 12 23 26 84 Terrain Rammed . | . . . . . . . . . . Walls Destroyed . | . . . . . . . . . . Machines Disabled . | . . . . . . . . . . Actions | -11 -10 -10 -9 -9 -9 -8 -8 -8 -8 --------- Run | Yrd Mat Min Mat Min Exi Min Mat Gar Mat Total 6986 | 68 1189 224 1335 486 128 506 1429 820 801 Wait 756 | . 223 2 66 . . 9 265 34 157 Move 5406 | 61 857 207 1133 474 124 467 974 702 407 Hop . | . . . . . . . . . . Pick Up 57 | 1 7 1 16 3 . 1 12 8 8 Fast Attach 24 | 6 3 . 3 . . . 10 2 . Attach 21 | . . 1 2 . 1 2 4 1 10 Detach 3 | . 1 . . . 1 . 1 . . Swap 66 | . 4 . 19 2 . 2 17 13 9 Drop 64 | . 4 . 23 5 2 . 19 9 2 Fire 544 | . 84 13 61 . . 23 124 39 200 Melee 12 | . . . . . . . . 12 . Ram . | . . . . . . . . . . Kick . | . . . . . . . . . . Crush 25 | . 6 . 4 2 . 2 3 . 8 Escape Stasis . | . . . . . . . . . . Rewire 8 | . . . 8 . . . . . . Trap . | . . . . . . . . . . Miscellaneous . | . . . . . . . . . . Route ------- -11/Scrapyard -10/Materials (discovered 4 exits: *Mat x3 / [*Min]) -10/Mines -9/Materials (discovered 4 exits: *Mat x3 / [*Min]) -9/Mines (discovered 4 exits: *Mat x2 / *Exi / [*Zio]) -9/Exiles -8/Mines (discovered 2 exits: *Mat x2) -8/Materials (discovered 3 exits: *Fac x2 / Gar) -8/Garrison (discovered 3 exits: *Mat x3) -8/Materials History --------- Turn | Location | Event 2 | -11/Scrapyard | Met Revision 17 4 | -11/Scrapyard | Discovered new exit (range 13) 98 | -11/Scrapyard | Entered Materials 303 | -10/Materials | Build established: Mutant 348 | -10/Materials | Discovered new exit (range 15) 597 | -10/Materials | Discovered new exit (range 15) 645 | -10/Materials | Central database locked down 1065 | -10/Materials | Destroyed 7 combat bots 1124 | -10/Materials | Discovered new exit (range 6) 1286 | -10/Materials | Discovered new exit (range 16) 1974 | -10/Materials | Entered Mines 2177 | -10/Mines | Assisted by bots powering up and referring to "LRC-V3" 2321 | -10/Mines | Discovered new exit (range 12) 2334 | -10/Mines | Assembled infested the area 2349 | -10/Mines | Entered Materials 2349 | -9/Materials | Accompanied by 1 ally 2349 | -9/Materials | Evolved 2 slots: Propulsion x1, Utility x1 2417 | -9/Materials | Identified exit to Materials 2736 | -9/Materials | Build established: Scavenger-Mutant 3663 | -9/Materials | Build established: Mutant 3730 | -9/Materials | Discovered new exit (range 8) 4467 | -9/Materials | Entered Mines 4482 | -9/Mines | Learned 4 Materials zone layouts 4482 | -9/Mines | Joined a pair of Derelicts in attacking an 0b10 outpost 4502 | -9/Mines | Met a Derelict bent on vengeance 4622 | -9/Mines | A Derelict revealed a hidden shortcut to a safe place 4629 | -9/Mines | Discovered exit to Materials (range 6) 4726 | -9/Mines | Discovered exit to Materials (range 8) 4773 | -9/Mines | Learned location of 1 exit from Lower Caves 4884 | -9/Mines | Received a Mining Laser from a helpful Derelict 4910 | -9/Mines | Found a hidden stash of uninstalled traps 5021 | -9/Mines | Deemed a non-threat by the Exiles lab entrance 5229 | -9/Mines | Discovered new exit (range 5) 5235 | -9/Mines | Entered Exiles 5276 | -9/Exiles | Met 8R-AWN 5304 | -9/Exiles | Met EX-HEX 5366 | -9/Exiles | Met EX-DEC 5374 | -9/Exiles | Learned location of Zion (-7) 5424 | -9/Exiles | Discovered new exit (range 10) 5436 | -9/Exiles | Entered Mines 5611 | -8/Mines | Discovered exit to Materials (range 10) 5676 | -8/Mines | Discovered exit to Materials (range 5) 6271 | -8/Mines | Entered Materials 6271 | -8/Materials | Evolved 2 slots: Utility x2 6272 | -8/Materials | Identified exit to Factory 7088 | -8/Materials | Discovered exit to Factory (range 20) 7527 | -8/Materials | Learned Factory emergency access door positions 7600 | -8/Materials | Learned Factory interactive machine intel 7663 | -8/Materials | Learned location of Lower Caves (-7) 7762 | -8/Materials | Learned Storage emergency access door positions 7798 | -8/Materials | Learned location of 1 exit from Lower Caves 7815 | -8/Materials | Repaired Shield Generator 7842 | -8/Materials | Learned Factory interactive machine intel 7849 | -8/Materials | Repaired Cooling System 7895 | -8/Materials | Learned location of 1 exit from Recycling 7900 | -8/Materials | Repaired Adv. Heat Sink 7957 | -8/Materials | Learned location of 1 exit from Lower Caves 8739 | -8/Materials | Identified exit to Garrison 8739 | -8/Materials | Entered Garrison 8797 | -8/Garrison | Triggered checkpoint 8992 | -8/Garrison | Triggered checkpoint 9035 | -8/Garrison | Triggered checkpoint 9200 | -8/Garrison | Discovered new exit (range 3) 9247 | -8/Garrison | Triggered checkpoint 9327 | -8/Garrison | Triggered checkpoint 9505 | -8/Garrison | Discovered new exit (range 12) 9531 | -8/Garrison | Learned Materials security intel 9683 | -8/Garrison | Triggered checkpoint 9760 | -8/Garrison | Discovered new exit (range 13) 9817 | -8/Garrison | Attempted to access garrison exit controls, blocked by remote lockdown 10129 | -8/Garrison | Entered Materials 10533 | -8/Materials | Core integrity fell below 50% 10929 | -8/Materials | First assault squad dispatched 11015 | -8/Materials | Garrison activated, responded to threat 11460 | -8/Materials | Garrison activated, responded to threat 11518 | -8/Materials | Lost 4 parts (1p1n2u) 11647 | -8/Materials | Core integrity fell below 20% 11767 | -8/Materials | Garrison activated, responded to threat 11779 | -8/Materials | Destroyed by L-31 Rogue with Katana Last Messages --------------- 11765_ K-01 Serf collects debris. 11767_ R-06 Scavenger collects Carbon-fiber Leg. 11767_ G-47 Trooper calls for garrison reinforcements. 11767_ ALERT: Activating Garrison Access M001. 11769_ K-01 Serf collects debris. 11770_ System corrupted: Missile Launcher failed to launch. 11771_ R-06 Scavenger collects Lgt. Angular Momentum Engine. 11772_ Nuclear Reactor explodes. 11772_ G-47 Trooper destroyed. 11773_ K-01 Serf collects debris. 11774_ R-06 Scavenger collects Adv. Heat Sink. 11776_ U-05 Engineer lays Concrete. 11777_ System corrupted: Arm. Treads rejected. 11777_ U-05 Engineer lays Concrete. 11777_ R-06 Scavenger collects Hvy. Laser. 11778_ U-05 Engineer lays Concrete. 11778_ K-01 Serf collects debris. 11778_ Destroyed Imp. Heat Sink. 11779_ The unstable cave ceiling collapses. 11779_ U-05 Engineer lays Concrete. Map ----- +----------------------------------------------------+ | ??????????????????????????????????????????????### | | ?????????????????????????????????????????????## " | | ?????????????????????????????????????????????# | | ?????????????????????????????????##########??## ! | | ?????????????????????????????????# !#??## | | ?????????????????????????????????# """ #??## | | ?????????????????????????????????# """""*#??## | | ?????????????????????????????????# """""!#####[ | | ?????????????????????????????????# """""%+[% + | | ?????????????????????????????????# """ ##### | | ?????????????????????????????????# #???## # | | ?????????????????????????????????# = #???### | | ?????????????????????????????????# !%= #?????## | | ?????????????????????????????????#####+########### | | ???????????????###################### % | | ???????????????? % % | | ????????????????? %= | | ????????????????? | | ????????????????? k % !% | | ????????????????? """ """ """ """ """ | | ??????????????????????#uk""" """ """ """ """ | | ??????????????????????# """ """ """ """ """ | | ??????????????????????# =%! = | | ??????????????????????# =*% [ | | ??????????????????????# !%[ """ """ """ | | ??????????????????????# @l """ """ """ | | ??????????????????????#" """ """???"" | | ??????????????????????#T i u ??? | | ??????????????????????# g g ??? | | ??????????????????????# % % ? ??= | | ??????????????????????#r g ????? | | ????????????????????? # +##????????# | | ???????????????????? ## # ## ?????????? | | ??????????????????? #?####? g ?"?????????? | | ??????????????????#######+##??????? ???????????? | | ???????????????????????????????????? ????????????? | | ?????????????????????????????????????????????????? | | ?????????????????????????????????????????????????? | | ?????????????????????????????????????????????????? | | ?????????????????????????????????????????????????? | | ?????????????????????????????????????????????????? | | ?????????????????????????????????????????????????? | | | | | | | | | | | | | | | | | +----------------------------------------------------+ Best States ------------- Heat Dissipation 72 Energy Generation 14 Energy Capacity 280 Matter Stores 300 Matter Capacity 300 Sight Range 20 Terrain Scan Density 10 Armor Coverage 450 Resistance: KI 30 Evasion (%) 40 Targeting Accuracy 8 Recoil Reduction 3 Offensive Hacking 10 Item Schematics ----------------- None Robot Schematics ------------------ M-13 Machinist | -10/Materials | Hacked Fabricated ------------ Nothing Alien Tech Used ----------------- None Achievements -------------- None Challenges ------------ None Game ------ Seed NullCannonCompactor Manual? 0 Play Time 00:58:35 Cumulative 465.2 hours Start 2024.08.15 @ 07:08:04 End 2024.08.15 @ 08:14:35 Sessions 2 Manual Loads 0 Difficulty Rogue Special Mode None Game No. 279 Rogue 279 Adventurer 0 Explorer 0 Win Type - Total 33 Types 24/2/4/1/1/0/0/1/0 Lore% 79 Gallery% 84 Achievement% 85 Wizard Run 0 Options --------- Layout 0 ASCII 0 Keyboard 1 Movement Numpad Keybinds 0 Fullscreen 2 Font 18/SmallcapsGlow Map View 76x50 Zoom Use 0% Tactical HUD 1 Map Filters NONE Filters NONE Steam 1 RUN: b47c0391-8a58-4c2b-a4d1-0e066da154d4